lending/lending_fUSD_20260209
["ID","MTS","AMOUNT","RATE_DAILY","PERIOD"]
[404918818,1770680478239,-150.32799845,0.0001637,2]
[404918819,1770680478323,-500.0,0.0001637,2]
[404918820,1770680478405,-500.0,0.0001637,2]
[404918821,1770680478488,-500.0,0.0001637,2]
[404918822,1770680478573,-500.0,0.0001637,2]
[404918823,1770680478656,-500.0,0.0001637,2]
[404918824,1770680478738,-500.0,0.0001637,2]
[404918825,1770680478820,-500.0,0.0001637,2]
[404918826,1770680478899,-199.3540031,0.0001637,2]
[404918827,1770680480671,-300.6459969,0.0001637,2]
[404918828,1770680480756,-343.57513287,0.0001637,2]
[404918829,1770680480836,-500.0,0.0001637,2]
[404918830,1770680480924,-500.0,0.0001637,2]
[404918831,1770680481011,-500.0,0.0001637,2]
[404918832,1770680481083,-500.0,0.0001637,2]
[404918833,1770680481162,-500.0,0.0001637,2]
[404918834,1770680481233,-500.0,0.0001637,2]
[404918835,1770680481327,-500.0,0.0001637,2]
[404918836,1770680481412,-500.0,0.0001637,2]
[404918837,1770680481498,-211.56774046,0.0001637,2]
[404918838,1770680481666,-288.43225954,0.0001637,2]
[404918839,1770680481746,-500.0,0.0001637,2]
[404918840,1770680481827,-500.0,0.0001637,2]
[404918841,1770680481916,-500.0,0.0001637,2]
[404918842,1770680481999,-500.0,0.0001637,2]
[404918843,1770680482077,-500.0,0.0001637,2]
[404918844,1770680482157,-500.0,0.0001637,2]
[404918845,1770680482236,-500.0,0.0001637,2]
[404918846,1770680482321,-450.0,0.0001637,2]
[404918847,1770680482402,-500.0,0.0001637,2]
[404918848,1770680482485,-23.14548092,0.0001637,2]
[404918849,1770680482705,-476.85451908,0.0001637,2]
[404918850,1770680482785,-500.0,0.0001637,2]
[404918851,1770680482866,-500.0,0.0001637,2]
[404918852,1770680482947,-500.0,0.0001637,2]
[404918853,1770680483027,-500.0,0.0001637,2]
[404918854,1770680483110,-500.0,0.0001637,2]
[404918855,1770680483192,-500.0,0.0001637,2]
[404918856,1770680483276,-500.0,0.0001637,2]
[404918857,1770680485681,-1472.57374235,0.00016279,2]
[404918858,1770680489086,-43.08486794,0.00016362,2]
[404918859,1770680489150,-347.65513206,0.00016362,2]
[404918860,1770680489160,-152.34486794,0.00016371,2]
[404918861,1770680489222,-500.0,0.00016371,2]
[404918862,1770680489286,-2046.30096184,0.00016371,2]
[404918863,1770680489348,-10000.01,0.00016371,2]
[404918864,1770680489424,-1472.57374235,0.00016371,2]
[404918865,1770680489489,-7054.8625153,0.00016371,2]
[404918866,1770680489556,-10000.01,0.00016371,2]
[404918867,1770680495676,-189.68869889,0.00016363,2]
[404918868,1770680499243,645.32883354,0.00016279,2]
[404918869,1770680501741,317.45368645,0.00016279,2]
[404918870,1770680510889,-9037.22748001,0.00016371,2]
[404918871,1770680510964,-10000.01,0.00016371,2]
[404918872,1770680511092,-10000.01,0.00016371,2]
[404918873,1770680511280,-10000.01,0.00016371,2]
[404918874,1770680511489,-10000.01,0.00016371,2]
[404918875,1770680511703,-10000.01,0.00016371,2]
[404918876,1770680511915,-10000.01,0.00016371,2]
[404918877,1770680512095,-10000.01,0.00016371,2]
[404918878,1770680512301,-10000.01,0.00016371,2]
[404918879,1770680512484,-10000.01,0.00016371,2]
[404918880,1770680522725,-500.0,0.00015672,2]
[404918881,1770680522802,-591.29995662,0.00016363,2]
[404918882,1770680522885,-300.0,0.0001637,2]
[404918883,1770680522958,-300.0,0.0001637,2]
[404918884,1770680523280,-6617.41008676,0.00016371,2]
[404918885,1770680523348,-10000.01,0.00016371,2]
[404918886,1770680523419,-211.6415611,0.00016279,2]
[404918887,1770680523428,-9788.3684389,0.00016371,2]
[404918888,1770680523513,-10000.01,0.00016371,2]
[404918889,1770680523654,-10000.01,0.00016371,2]
[404918890,1770680523837,-500.0,0.00015773,2]
[404918891,1770680523921,-1000.0,0.00016321,2]
[404918892,1770680524141,-7000.01,0.00016371,2]
[404918893,1770680524230,-2436.55069835,0.00016271,2]
[404918894,1770680524472,-5126.9086033,0.00016371,2]
[404918895,1770680524607,-10000.01,0.00016371,2]
[404918896,1770680524683,-10000.01,0.00016371,2]
[404918897,1770680530770,403.31,0.000356,30]
[404918898,1770680553031,-250.0,0.00016017,2]
[404918899,1770680576296,1200.0,0.00016183,2]
[404918900,1770680588583,4068.162037,7.945e-05,2]
[404918901,1770680700094,4731.847963,0.00016179,2]
[404918902,1770680700173,10000.01,0.00016179,2]
[404918903,1770680700254,10000.01,0.00016179,2]
[404918904,1770680700343,10000.01,0.00016179,2]
[404918905,1770680700421,10000.01,0.00016179,2]
[404918906,1770680700501,10000.01,0.00016179,2]
[404918907,1770680700573,10000.01,0.00016179,2]
[404918908,1770680700642,10000.01,0.00016179,2]
[404918909,1770680700707,10000.01,0.00016179,2]
[404918910,1770680700769,10000.01,0.00016179,2]
[404918911,1770680721086,1560.94707632,0.00016164,2]
[404918912,1770680721530,362.98,0.000356,30]
[404918913,1770680727299,500.0,0.00015773,2]
[404918914,1770680739654,187.77542176,0.00016164,2]
[404918915,1770680840300,-250.0,0.00015,2]
[404918916,1770680855121,-600.0,0.000156,5]
[404918917,1770680870223,-1300.0,0.000157,5]
[404918918,1770680885194,-2000.0,0.000158,5]
[404918919,1770680890464,196.9792508,0.00015755,2]
[404918920,1770680900299,-2600.0,0.000159,5]
[404918921,1770680912307,326.68,0.000356,30]
[404918922,1770680915304,-250.0,0.00016004,2]
[404918923,1770680951811,203.405932,0.000356,31]
[404918924,1770680953427,203.405932,0.000356,31]
[404918925,1770680954950,203.405932,0.000356,31]
[404918926,1770680956632,203.405932,0.000356,31]
[404918927,1770680973127,1457.12111715,0.00016064,2]
[404918930,1770680978366,6202.37,0.00012725,2]
[404918931,1770680990523,2340.51888285,0.00016064,2]
[404918932,1770680990591,10000.01,0.00016064,2]
[404918933,1770680990656,10000.01,0.00016064,2]
[404918934,1770680990719,10000.01,0.00016064,2]
[404918935,1770680990790,10000.01,0.00016064,2]
[404918936,1770680990857,10000.01,0.00016064,2]
[404918937,1770680990922,10000.01,0.00016064,2]
[404918938,1770680990989,10000.01,0.00016064,2]
[404918939,1770680991053,10000.01,0.00016064,2]
[404918940,1770681001272,166.75,0.00012399,2]
[404918945,1770681032013,-2800.0,0.000156,5]
[404918946,1770681032023,-4742.57710756,0.000157,5]
[404918947,1770681032039,-957.42289244,0.000157,5]
[404918948,1770681032048,-500.0,0.00015773,2]
[404918949,1770681032058,-8600.0,0.000158,5]
[404918950,1770681032067,-11500.0,0.000159,5]
[404918951,1770681032078,-1427.61032238,0.00015979,2]
[404918952,1770681032087,-4378.73272081,0.00015979,2]
[404918953,1770681032096,-2752.61619467,0.00015979,2]
[404918954,1770681032107,-236.27158272,0.00016054,2]
[404918955,1770681032116,-300.0,0.00016063,2]
[404918956,1770681032125,-1200.0,0.00016063,2]
[404918957,1770681032135,-284.0,0.00016064,2]
[404918958,1770681032144,-150702.34241298,0.00016064,2]
[404918959,1770681032156,-27688.37273672,0.00016064,2]
[404918960,1770681032167,-1254.41808677,0.00016064,2]
[404918961,1770681032178,-378.23771447,0.00016064,2]
[404918962,1770681032190,-11651.68718471,0.00016064,2]
[404918963,1770681032220,-334.9295531,0.00016064,2]
[404918971,1770681038270,-1469.7101826,0.00015979,2]
[404918972,1770681038280,-2317362.0150984,0.00016064,2]
[404918973,1770681038330,-30455.63312858,0.00016064,2]
[404918974,1770681038342,-1086.8797393,0.00016064,2]
[404919054,1770681040144,-3338.78006525,0.00016064,2]
[404919055,1770681040158,-873406.10539687,0.00016064,2]
[404919056,1770681040168,-2500.0,0.00016079,2]
[404919057,1770681040180,-6730.3604,0.00016079,2]
[404919058,1770681040190,-89357.7518,0.00016079,2]
[404919059,1770681040199,-250.0,0.00016097,2]
[404919060,1770681040207,-1200.0,0.00016106,2]
[404919061,1770681040216,-414.42161269,0.00016107,2]
[404919062,1770681040226,-196.9792508,0.00016134,2]
[404919063,1770681040236,-150.0,0.00016152,2]
[404919064,1770681040245,-150.0,0.00016152,2]
[404919065,1770681040255,-550.0,0.00016163,2]
[404919066,1770681040264,-300.0,0.00016163,2]
[404919067,1770681040273,-172.77481085,0.00016164,2]
[404919068,1770681040283,-3394.28616592,0.00016164,2]
[404919069,1770681040296,-1024.0,0.00016164,2]
[404919070,1770681040305,-151.0,0.00016176,2]
[404919071,1770681040315,-500.0,0.00016178,2]
[404919072,1770681040325,-423.77293831,0.00016178,2]
[404919073,1770681040334,-552.41914123,0.00016178,2]
[404919074,1770681040343,-326.78193266,0.00016178,2]
[404919075,1770681040352,-500.0,0.00016178,2]
[404919076,1770681040362,-500.0,0.00016178,2]
[404919077,1770681040372,-500.0,0.00016178,2]
[404919078,1770681040382,-500.0,0.00016178,2]
[404919079,1770681040391,-500.0,0.00016178,2]
[404919080,1770681040401,-500.0,0.00016178,2]
[404919081,1770681040411,-788.55824099,0.00016178,2]
[404919082,1770681040420,-250.27721832,0.00016178,2]
[404919083,1770681040430,-222.0564061,0.00016178,2]
[404919084,1770681040439,-788.55824099,0.00016178,2]
[404919085,1770681040448,-500.0,0.00016178,2]
[404919086,1770681040459,-788.55824099,0.00016178,2]
[404919087,1770681040468,-788.55824099,0.00016178,2]
[404919088,1770681040478,-788.55824099,0.00016178,2]
[404919089,1770681040487,-788.55824099,0.00016178,2]
[404919090,1770681040496,-788.55824099,0.00016178,2]
[404919091,1770681040506,-788.55824099,0.00016178,2]
[404919092,1770681040517,-788.55824099,0.00016178,2]
[404919093,1770681040526,-788.55824099,0.00016178,2]
[404919094,1770681040536,-788.55824099,0.00016178,2]
[404919095,1770681040546,-788.55824099,0.00016178,2]
[404919096,1770681040556,-788.55824099,0.00016178,2]
[404919097,1770681040566,-788.55824099,0.00016178,2]
[404919098,1770681040575,-788.55824099,0.00016178,2]
[404919099,1770681040585,-788.55824099,0.00016178,2]
[404919100,1770681040594,-788.55824099,0.00016178,2]
[404919101,1770681040603,-788.55824099,0.00016178,2]
[404919102,1770681040612,-788.55824099,0.00016178,2]
[404919105,1770681040626,-788.55824099,0.00016178,2]
[404919106,1770681040635,-788.55824099,0.00016178,2]
[404919108,1770681040645,-788.55824099,0.00016178,2]
[404919110,1770681040655,-788.55824099,0.00016178,2]
[404919112,1770681040664,-788.55824099,0.00016178,2]
[404919114,1770681040673,-788.55824099,0.00016178,2]
[404919116,1770681040683,-788.55824099,0.00016178,2]
[404919118,1770681040693,-788.55824099,0.00016178,2]
[404919120,1770681040703,-788.55824099,0.00016178,2]
[404919122,1770681040712,-788.55824099,0.00016178,2]
[404919124,1770681040722,-788.55824099,0.00016178,2]
[404919126,1770681040731,-788.55824099,0.00016178,2]
[404919128,1770681040741,-788.55824099,0.00016178,2]
[404919130,1770681040750,-788.55824099,0.00016178,2]
[404919132,1770681040759,-788.55824099,0.00016178,2]
[404919134,1770681040771,-788.55824099,0.00016178,2]
[404919137,1770681040781,-788.55824099,0.00016178,2]
[404919139,1770681040790,-788.55824099,0.00016178,2]
[404919141,1770681040800,-788.55824099,0.00016178,2]
[404919143,1770681040809,-788.55824099,0.00016178,2]
[404919145,1770681040819,-788.55824099,0.00016178,2]
[404919147,1770681040828,-788.55824099,0.00016178,2]
[404919149,1770681040838,-788.55824099,0.00016178,2]
[404919151,1770681040848,-788.55824099,0.00016178,2]
[404919152,1770681040858,-788.55824099,0.00016178,2]
[404919153,1770681040867,-788.55824099,0.00016178,2]
[404919154,1770681040878,-788.55824099,0.00016178,2]
[404919155,1770681040892,-788.55824099,0.00016178,2]
[404919156,1770681040901,-788.55824099,0.00016178,2]
[404919157,1770681040911,-788.55824099,0.00016178,2]
[404919158,1770681040922,-788.55824099,0.00016178,2]
[404919159,1770681040932,-788.55824099,0.00016178,2]
[404919160,1770681040941,-788.55824099,0.00016178,2]
[404919161,1770681040950,-788.55824099,0.00016178,2]
[404919162,1770681040960,-788.55824099,0.00016178,2]
[404919163,1770681040970,-788.55824099,0.00016178,2]
[404919164,1770681040981,-788.55824099,0.00016178,2]
[404919165,1770681040991,-788.55824099,0.00016178,2]
[404919166,1770681041001,-788.55824099,0.00016178,2]
[404919167,1770681041010,-788.55824099,0.00016178,2]
[404919168,1770681041021,-788.55824099,0.00016178,2]
[404919169,1770681041031,-788.55824099,0.00016178,2]
[404919170,1770681041046,-788.55824099,0.00016178,2]
[404919171,1770681041056,-788.55824099,0.00016178,2]
[404919172,1770681041066,-788.55824099,0.00016178,2]
[404919173,1770681041076,-788.55824099,0.00016178,2]
[404919174,1770681041086,-788.55824099,0.00016178,2]
[404919175,1770681041098,-777.29312326,0.00016178,2]
[404919176,1770681041109,-777.29312326,0.00016178,2]
[404919177,1770681041119,-777.29312326,0.00016178,2]
[404919178,1770681041129,-777.29312326,0.00016178,2]
[404919179,1770681041139,-777.29312326,0.00016178,2]
[404919180,1770681041149,-777.29312326,0.00016178,2]
[404919181,1770681041158,-777.29312326,0.00016178,2]
[404919182,1770681041168,-777.29312326,0.00016178,2]
[404919183,1770681041179,-777.29312326,0.00016178,2]
[404919184,1770681041188,-777.29312326,0.00016178,2]
[404919185,1770681041199,-777.29312326,0.00016178,2]
[404919186,1770681041209,-777.29312326,0.00016178,2]
[404919187,1770681041219,-777.29312326,0.00016178,2]
[404919188,1770681041229,-777.29312326,0.00016178,2]
[404919189,1770681041239,-777.29312326,0.00016178,2]
[404919190,1770681041249,-777.29312326,0.00016178,2]
[404919191,1770681041258,-777.29312326,0.00016178,2]
[404919192,1770681041268,-777.29312326,0.00016178,2]
[404919193,1770681041279,-777.29312326,0.00016178,2]
[404919194,1770681041289,-777.29312324,0.00016178,2]
[404919195,1770681041302,-777.29312324,0.00016178,2]
[404919196,1770681041313,-200.0,0.00016207,2]
[404919197,1770681041323,-383.59785608,0.00016272,2]
[404919198,1770681041332,-1000.0,0.00016321,2]
[404919199,1770681041342,-15884.05605959,0.00016361,2]
[404919200,1770681041356,-500.0,0.00016361,2]
[404919201,1770681041366,-500.0,0.00016361,2]
[404919202,1770681041375,-500.0,0.00016361,2]
[404919203,1770681041385,-500.0,0.00016361,2]
[404919204,1770681041394,-500.0,0.00016361,2]
[404919205,1770681041404,-151.0,0.00016361,2]
[404919206,1770681041413,-500.0,0.00016361,2]
[404919207,1770681041422,-151.0,0.00016361,2]
[404919208,1770681041432,-500.0,0.00016361,2]
[404919209,1770681041441,-151.0,0.00016361,2]
[404919210,1770681041451,-500.0,0.00016361,2]
[404919211,1770681041460,-151.0,0.00016361,2]
[404919212,1770681041470,-500.0,0.00016361,2]
[404919213,1770681041480,-151.0,0.00016361,2]
[404919214,1770681041489,-500.0,0.00016361,2]
[404919215,1770681041500,-151.0,0.00016361,2]
[404919216,1770681041510,-576.93318184,0.00016361,2]
[404919217,1770681041520,-151.0,0.00016361,2]
[404919218,1770681041530,-151.0,0.00016361,2]
[404919219,1770681041541,-322.6107,0.00016361,2]
[404919220,1770681041550,-151.0,0.00016361,2]
[404919221,1770681041560,-151.0,0.00016361,2]
[404919222,1770681041570,-151.0,0.00016361,2]
[404919223,1770681041580,-151.0,0.00016361,2]
[404919224,1770681041592,-151.0,0.00016361,2]
[404919225,1770681041602,-277.35679052,0.00016361,2]
[404919226,1770681041612,-151.0,0.00016361,2]
[404919227,1770681041621,-151.0,0.00016361,2]
[404919228,1770681041631,-151.0,0.00016361,2]
[404919229,1770681041641,-151.0,0.00016361,2]
[404919230,1770681041651,-151.0,0.00016361,2]
[404919231,1770681041661,-151.0,0.00016361,2]
[404919232,1770681041671,-151.0,0.00016361,2]
[404919233,1770681041681,-151.0,0.00016361,2]
[404919234,1770681041690,-174.61919141,0.00016361,2]
[404919235,1770681041700,-151.0,0.00016361,2]
[404919236,1770681041710,-151.0,0.00016361,2]
[404919237,1770681041721,-151.0,0.00016361,2]
[404919238,1770681041730,-151.0,0.00016361,2]
[404919239,1770681041739,-151.0,0.00016361,2]
[404919240,1770681041752,-151.0,0.00016361,2]
[404919241,1770681041762,-181.94680942,0.00016361,2]
[404919242,1770681041772,-500.0,0.00016363,2]
[404919243,1770681041781,-500.0,0.00016363,2]
[404919244,1770681041790,-500.0,0.00016363,2]
[404919245,1770681041800,-500.0,0.00016363,2]
[404919246,1770681041810,-500.0,0.00016363,2]
[404919247,1770681041819,-523.60464344,0.00016363,2]
[404919248,1770681041828,-500.0,0.00016363,2]
[404919249,1770681041838,-500.0,0.00016363,2]
[404919250,1770681041847,-500.0,0.00016363,2]
[404919251,1770681041856,-1719.6733564,0.0001637,2]
[404919252,1770681041866,-1316.12626123,0.0001637,5]
[404919253,1770681041876,-8472.56,0.0001637,2]
[404919254,1770681041885,-9999.99,0.0001637,2]
[404919255,1770681041895,-999.99,0.0001637,2]
[404919256,1770681041905,-150.99,0.0001637,2]
[404919257,1770681041915,-9999.99,0.0001637,2]
[404919258,1770681042136,-150.99,0.0001637,2]
[404919259,1770681042147,-500.0,0.0001637,2]
[404919260,1770681042157,-10041.74,0.00016379,2]
[404919261,1770681042168,-158.9339737,0.00016417,2]
[404919262,1770681042178,-158.9339737,0.00016417,2]
[404919263,1770681042187,-158.9339737,0.00016417,2]
[404919264,1770681042207,-158.9339737,0.00016417,2]
[404919265,1770681042218,-159.09290767,0.00016417,2]
[404919266,1770681042229,-414.42161262,0.00016464,2]
[404919267,1770681042239,-12329.2,0.00016471,2]
[404919268,1770681042250,-3394.2861659,0.00016515,2]
[404919269,1770681042260,-390.74,0.00016636,2]
[404919270,1770681042271,-759.2658574,0.00016649,2]
[404919271,1770681042281,-165.74,0.00016712,2]
[404919272,1770681042292,-414.42161262,0.00016821,2]
[404919273,1770681042302,-3394.2861659,0.00016866,2]
[404919274,1770681042312,-1500.0,0.00016868,2]
[404919275,1770681042322,-160.39146194,0.00016909,2]
[404919276,1770681042332,-181.08010149,0.00016909,2]
[404919277,1770681042342,-390.74,0.0001691,2]
[404919278,1770681042352,-1005.23730809,0.0001691,2]
[404919279,1770681042362,-1000.0,0.0001691,2]
[404919280,1770681042372,-1000.0,0.0001691,2]
[404919281,1770681042382,-1000.0,0.0001691,2]
[404919282,1770681042393,-1000.0,0.0001691,2]
[404919283,1770681042402,-1000.0,0.0001691,2]
[404919284,1770681042412,-1000.0,0.0001691,2]
[404919285,1770681042422,-1000.0,0.0001691,2]
[404919286,1770681042431,-1000.0,0.0001691,2]
[404919287,1770681042441,-1000.0,0.0001691,2]
[404919288,1770681042452,-1000.0,0.0001691,2]
[404919289,1770681042462,-1000.0,0.0001691,2]
[404919290,1770681042471,-298.27829277,0.0001691,2]
[404919291,1770681042480,-1000.0,0.0001691,2]
[404919292,1770681042490,-500.0,0.00016999,2]
[404919293,1770681042500,-196.78246833,0.00017102,2]
[404919294,1770681042510,-414.42161262,0.00017178,2]
[404919295,1770681042520,-390.74,0.00017184,2]
[404919296,1770681042531,-3394.2861659,0.00017216,2]
[404919297,1770681042540,-550.0,0.00017278,2]
[404919298,1770681042550,-500.0,0.00017293,2]
[404919299,1770681042560,-2000.0,0.00017416,2]
[404919300,1770681042570,-168.0,0.00017427,2]
[404919301,1770681042580,-168.0,0.00017433,2]
[404919302,1770681042589,-8651.8064,0.00017447,2]
[404919303,1770681042599,-187.78006525,0.00017457,2]
[404919304,1770681042610,-390.78781305,0.00017458,2]
[404919305,1770681042621,-500.0,0.00017458,2]
[404919306,1770681042631,-1500.0,0.00017458,2]
[404919307,1770681042641,-1500.0,0.00017458,2]
[404919308,1770681042652,-1500.0,0.00017458,2]
[404919309,1770681042662,-651.17562244,0.00017458,2]
[404919310,1770681042671,-1500.0,0.00017458,2]
[404919311,1770681042682,-492.57355052,0.00017458,2]
[404919312,1770681042692,-1478.93057877,0.00017458,2]
[404919313,1770681042702,-1500.0,0.00017458,2]
[404919314,1770681042712,-1500.0,0.00017458,2]
[404919315,1770681042722,-1500.0,0.00017458,2]
[404919316,1770681042732,-1500.0,0.00017458,2]
[404919317,1770681042742,-250.0,0.0001749,2]
[404919318,1770681042756,-414.42161262,0.00017535,2]
[404919319,1770681042765,-168.0,0.00017554,2]
[404919320,1770681042775,-3394.2861659,0.00017567,2]
[404919321,1770681042785,-196.78246833,0.0001757,2]
[404919322,1770681042795,-900.0,0.00017581,2]
[404919323,1770681042805,-168.0,0.00017608,2]
[404919324,1770681042815,-1680.0,0.00017649,2]
[404919325,1770681042825,-352.0,0.00017669,2]
[404919326,1770681042834,-250.0,0.00017687,2]
[404919327,1770681042843,-168.0,0.00017725,2]
[404919328,1770681042853,-334.5472959,0.0001773,2]
[404919329,1770681042863,-168.0,0.00017777,2]
[404919330,1770681042872,-500.0,0.00017795,2]
[404919331,1770681042882,-193.0,0.00017796,2]
[404919332,1770681042891,-600.0,0.00017796,2]
[404919333,1770681042901,-300.0,0.00017796,2]
[404919334,1770681042912,-500.0,0.00017808,2]
[404919335,1770681042922,-500.0,0.00017808,2]
[404919336,1770681042932,-159.39118766,0.00017808,2]
[404919337,1770681042942,-168.0,0.00017852,2]
[404919338,1770681042951,-500.0,0.00017863,2]
[404919339,1770681042961,-2845.0,0.00017872,2]
[404919340,1770681042971,-414.42161262,0.00017893,2]
[404919341,1770681042980,-196.78246833,0.00017907,2]
[404919342,1770681042990,-500.0,0.00017918,2]
[404919343,1770681043000,-3394.2861659,0.00017918,2]
[404919344,1770681043010,-2500.0,0.00017964,2]
[404919345,1770681043019,-500.0,0.00017972,2]
[404919346,1770681043029,-500.0,0.00017999,2]
[404919347,1770681043042,-500.0,0.00017999,2]
[404919348,1770681043052,-280.80805675,0.00018005,2]
[404919349,1770681043061,-2000.0,0.00018006,2]
[404919350,1770681043071,-2000.0,0.00018006,2]
[404919351,1770681043081,-2000.0,0.00018006,2]
[404919352,1770681043090,-2000.0,0.00018006,2]
[404919353,1770681043100,-1502.0240799,0.00018006,2]
[404919354,1770681043111,-2000.0,0.00018006,2]
[404919355,1770681043121,-199.85353231,0.00018006,2]
[404919356,1770681043130,-2000.0,0.00018006,2]
[404919357,1770681043140,-500.0,0.00018027,2]
[404919358,1770681043150,-168.0,0.00018028,2]
[404919359,1770681043159,-500.0,0.00018082,2]
[404919360,1770681043168,-500.0,0.00018137,2]
[404919361,1770681043178,-168.0,0.00018188,2]
[404919362,1770681043187,-500.0,0.00018192,2]
[404919363,1770681043197,-500.0,0.00018246,2]
[404919364,1770681043208,-414.42161262,0.0001825,2]
[404919365,1770681043217,-3394.2861659,0.00018269,2]
[404919366,1770681043227,-419.79604183,0.00018301,2]
[404919367,1770681043237,-200.0,0.00018319,2]
[404919368,1770681043247,-168.0,0.00018335,2]
[404919369,1770681043256,-168.0,0.00018351,2]
[404919370,1770681043267,-196.78246833,0.00018375,2]
[404919371,1770681043276,-168.0,0.0001843,2]
[404919372,1770681043285,-1046.8548043,0.00018512,2]
[404919373,1770681043296,-2500.0,0.00018554,2]
[404919374,1770681043305,-505.63067786,0.00018554,2]
[404919375,1770681043316,-2500.0,0.00018554,2]
[404919376,1770681043325,-2500.0,0.00018554,2]
[404919377,1770681043335,-1726.60116009,0.00018554,2]
[404919378,1770681043345,-2500.0,0.00018554,2]
[404919379,1770681043354,-414.42161262,0.00018607,2]
[404919380,1770681043364,-3394.2861659,0.00018619,2]
[404919381,1770681043374,-207.09997393,0.00018629,2]
[404919382,1770681043383,-168.0,0.00018656,2]
[404919383,1770681043393,-162.30206933,0.000189,2]
[404919384,1770681043403,-3300.0,0.000189,6]
[404919385,1770681043412,-14400.0,0.000189,6]
[404919386,1770681043422,-168.0,0.00018907,2]
[404919387,1770681043431,-900.0,0.00018951,2]
[404919388,1770681043440,-168.0,0.00018961,2]
[404919389,1770681043449,-414.42161262,0.00018964,2]
[404919390,1770681043459,-3394.2861659,0.0001897,2]
[404919391,1770681043469,-269.53557665,0.00019102,2]
[404919392,1770681043478,-455.48148718,0.00019102,2]
[404919393,1770681043488,-3000.0,0.00019102,2]
[404919394,1770681043498,-3000.0,0.00019102,2]
[404919395,1770681043507,-168.0,0.00019108,2]
[404919396,1770681043517,-168.0,0.00019109,2]
[404919397,1770681043527,-159.54417137,0.00019178,2]
[404919398,1770681043537,-151.34800478,0.00019178,2]
[404919399,1770681043546,-250.11398482,0.00019178,2]
[404919400,1770681043556,-3394.2861659,0.00019321,2]
[404919401,1770681043565,-414.42161262,0.00019321,2]
[404919402,1770681043575,-1825.0,0.00019392,2]
[404919403,1770681043585,-500.0,0.00019397,2]
[404919404,1770681043595,-151.0,0.00019418,2]
[404919405,1770681043606,-151.0,0.00019418,2]
[404919406,1770681043616,-1500000.0,0.00019421,2]
[404919407,1770681043625,-33312.6077,0.00019421,2]
[404919408,1770681043635,-1000.0,0.00019421,2]
[404919409,1770681043645,-20084.3181704,0.00019521,2]
[404919410,1770681043656,-151.0,0.00019521,2]
[404919411,1770681043666,-152.388371,0.00019521,2]
[404919412,1770681043675,-3500.0,0.0001965,2]
[404919413,1770681043684,-3500.0,0.0001965,2]
[404919414,1770681043694,-150.0,0.00019726,2]
[404919415,1770681043704,-150.0,0.00019781,2]
[404919416,1770681043714,-173.61111,0.000198,2]
[404919417,1770681043724,-173.61111,0.000198,2]
[404919418,1770681043734,-200.7490249,0.00019836,2]
[404919419,1770681043744,-600.0,0.000199,7]
[404919420,1770681043753,-34050.15934215,0.0002,4]
[404919421,1770681043769,-265.4030612,0.0002,4]
[404919422,1770681043784,-259.39905185,0.0002,4]
[404919423,1770681043802,-10980.82435444,0.0002,4]
[404919427,1770681044351,-1300.78923025,0.00015979,2]
[404919428,1770681044361,-1300.78923022,0.00017583,2]
[404919429,1770681044370,-564.64838264,0.00019187,2]
[404919434,1770681044436,-736.14084758,0.00019187,2]
[404919435,1770681044446,-889.81240777,0.0002,4]
[404919436,1770681044459,-374.04757467,0.0002,4]
[404919438,1770681046540,-150.0,0.00017927,2]
[404919439,1770681046550,-10408.5,0.0002,4]
[404919460,1770681047077,-3511.14938716,0.0002,4]
[404919485,1770681083493,10000.01,0.00015964,2]
[404919486,1770681083573,10000.01,0.00015964,2]